lending/lending_fUSD_20250429
["ID","MTS","AMOUNT","RATE_DAILY","PERIOD"]
[359309588,1745905037394,886.56,0.00038356,30]
[359309589,1745905038734,785.71,0.00038356,30]
[359309590,1745905039708,470.0,0.00038356,30]
[359309591,1745905040433,712.37,0.00038356,30]
[359309592,1745905041598,664.26,0.00038356,30]
[359309593,1745905041972,470.0,0.00038356,30]
[359309594,1745905044360,470.0,0.00038356,30]
[359309595,1745905045074,485.64,0.00038356,30]
[359309596,1745905046046,470.0,0.00038356,30]
[359309597,1745905048867,470.0,0.00038356,30]
[359309598,1745905049562,470.0,0.00038356,30]
[359309599,1745905050066,470.0,0.00038356,30]
[359309600,1745905050276,928.76,0.00038356,30]
[359309601,1745905053095,470.0,0.00038356,30]
[359309602,1745905053358,470.0,0.00038356,30]
[359309603,1745905053634,470.0,0.00038356,30]
[359309604,1745905054451,470.0,0.00038356,30]
[359309605,1745905060333,470.0,0.00038356,30]
[359309606,1745905060586,470.0,0.00038356,30]
[359309607,1745905064674,3577.18,0.00038356,30]
[359309608,1745905066749,470.0,0.00038356,30]
[359309609,1745905067060,470.0,0.00038356,30]
[359309610,1745905068676,1132.78,0.00038356,30]
[359309611,1745905069479,508.06,0.00038356,30]
[359309612,1745905070311,470.0,0.00038356,30]
[359309613,1745905071138,470.0,0.00038356,30]
[359309614,1745905071884,470.0,0.00038356,30]
[359309615,1745905076431,470.0,0.00038356,30]
[359309616,1745905076507,470.0,0.00038356,30]
[359309617,1745905079096,470.0,0.00038356,30]
[359309618,1745905080146,470.0,0.00038356,30]
[359309619,1745905080681,485.84,0.00038356,30]
[359309620,1745905081570,650.2,0.00038356,30]
[359309621,1745905083468,470.0,0.00038356,30]
[359309622,1745905086400,470.0,0.00038356,30]
[359309623,1745905090193,470.0,0.00038356,30]
[359309624,1745905090252,470.0,0.00038356,30]
[359309625,1745905090324,836.19,0.00038356,30]
[359309626,1745905090690,470.0,0.00038356,30]
[359309627,1745905090814,470.0,0.00038356,30]
[359309628,1745905093855,470.0,0.00038356,30]
[359309629,1745905095223,470.0,0.00038356,30]
[359309630,1745905095457,470.0,0.00038356,30]
[359309631,1745905095994,791.4,0.00038356,30]
[359309632,1745905098424,2461.92,0.00038356,30]
[359309633,1745905099488,470.0,0.00038356,30]
[359309634,1745905103229,470.0,0.00038356,30]
[359309635,1745905103724,470.0,0.00038356,30]
[359309636,1745905104778,470.0,0.00038356,30]
[359309637,1745905105335,470.0,0.00038356,30]
[359309638,1745905105396,487.83,0.00038356,30]
[359309639,1745905110363,1503.724,0.00037651,49]
[359309640,1745905110557,166.957,0.00037651,49]
[359309641,1745905111234,470.0,0.00038356,30]
[359309642,1745905111848,470.0,0.00038356,30]
[359309643,1745905113136,470.0,0.00038356,30]
[359309644,1745905115299,470.0,0.00038356,30]
[359309645,1745905116871,470.0,0.00038356,30]
[359309646,1745905119713,561.82,0.00038356,30]
[359309647,1745905121453,470.0,0.00038356,30]
[359309648,1745905122621,472.13,0.00038356,30]
[359309649,1745905124002,470.0,0.00038356,30]
[359309650,1745905124401,470.0,0.00038356,30]
[359309651,1745905128476,470.0,0.00038356,30]
[359309652,1745905129360,470.0,0.00038356,30]
[359309653,1745905129992,506.02,0.00038356,30]
[359309654,1745905130871,8180.84,0.00038356,30]
[359309655,1745905132623,470.0,0.00038356,30]
[359309656,1745905133045,494.96,0.00038356,30]
[359309657,1745905133171,470.0,0.00038356,30]
[359309658,1745905134011,470.0,0.00038356,30]
[359309659,1745905134972,470.0,0.00038356,30]
[359309660,1745905137261,483.88,0.00038356,30]
[359309661,1745905138490,470.0,0.00038356,30]
[359309662,1745905139409,470.0,0.00038356,30]
[359309663,1745905145080,470.0,0.00038356,30]
[359309664,1745905146794,470.0,0.00038356,30]
[359309665,1745905147555,470.0,0.00038356,30]
[359309666,1745905147813,470.0,0.00038356,30]
[359309667,1745905149113,627.32,0.00038356,30]
[359309668,1745905150381,470.0,0.00038356,30]
[359309669,1745905151359,492.17,0.00038356,30]
[359309670,1745905152348,470.0,0.00038356,30]
[359309671,1745905153500,679.98,0.00038356,30]
[359309672,1745905154469,470.0,0.00038356,30]
[359309673,1745905154763,470.0,0.00038356,30]
[359309674,1745905156168,500.0,0.00038356,30]
[359309675,1745905157725,489.05,0.00038356,30]
[359309676,1745905157846,396.82283,0.0003807,62]
[359309677,1745905157907,255.62822328,0.00038356,30]
[359309678,1745905158682,150.0,0.00038356,30]
[359309679,1745905160898,994.91,0.00038356,30]
[359309680,1745905162020,470.0,0.00038356,30]
[359309681,1745905162255,154.51559126,0.00038356,30]
[359309682,1745905163254,150.0,0.00038356,30]
[359309683,1745905164104,470.0,0.00038356,30]
[359309684,1745905164224,470.0,0.00038356,30]
[359309685,1745905167317,497.95,0.00038356,30]
[359309686,1745905173847,470.0,0.00038356,30]
[359309687,1745905174732,530.26590878,0.00038356,30]
[359309688,1745905177020,470.0,0.00038356,30]
[359309689,1745905177949,470.0,0.00038356,30]
[359309690,1745905179023,470.0,0.00038356,30]
[359309691,1745905179681,470.0,0.00038356,30]
[359309692,1745905179919,911.24,0.00038356,30]
[359309693,1745905180160,470.0,0.00038356,30]
[359309694,1745905182588,470.0,0.00038356,30]
[359309695,1745905184215,494.14,0.00038356,30]
[359309696,1745905188794,470.0,0.00038356,30]
[359309697,1745905190854,2847.28,0.00038356,30]
[359309698,1745905190947,470.0,0.00038356,30]
[359309699,1745905191894,470.0,0.00038356,30]
[359309700,1745905192696,5890.56,0.00038356,30]
[359309701,1745905194653,470.0,0.00038356,30]
[359309702,1745905199557,510.53,0.00038356,30]
[359309703,1745905200253,470.0,0.00038356,30]
[359309704,1745905200441,470.0,0.00038356,30]
[359309705,1745905200931,470.0,0.00038356,30]
[359309706,1745905203724,470.0,0.00038356,30]
[359309707,1745905206813,470.0,0.00038356,30]
[359309708,1745905207751,470.0,0.00038356,30]
[359309709,1745905208524,6336.126513,7.945e-05,2]
[359309710,1745905208841,470.0,0.00038356,30]
[359309711,1745905210231,470.0,0.00038356,30]
[359309712,1745905211888,470.0,0.00038356,30]
[359309713,1745905212115,470.0,0.00038356,30]
[359309714,1745905212517,470.0,0.00038356,30]
[359309715,1745905212635,470.0,0.00038356,30]
[359309716,1745905212960,470.0,0.00038356,30]
[359309717,1745905213202,470.0,0.00038356,30]
[359309718,1745905213265,551.29,0.00038356,30]
[359309719,1745905213385,470.0,0.00038356,30]
[359309720,1745905214291,470.0,0.00038356,30]
[359309721,1745905216334,470.0,0.00038356,30]
[359309722,1745905218852,470.0,0.00038356,30]
[359309723,1745905218997,470.0,0.00038356,30]
[359309724,1745905219223,470.0,0.00038356,30]
[359309725,1745905219703,470.0,0.00038356,30]
[359309726,1745905220300,200.0,0.00038356,30]
[359309727,1745905221622,470.0,0.00038356,30]
[359309728,1745905222034,629.53,0.00038356,30]
[359309729,1745905222294,470.0,0.00038356,30]
[359309730,1745905223569,470.0,0.00038356,30]
[359309731,1745905224471,1089.61,0.00038356,30]
[359309732,1745905226019,579.24,0.00038356,30]
[359309733,1745905226118,470.0,0.00038356,30]
[359309734,1745905226749,470.0,0.00038356,30]
[359309735,1745905226815,470.0,0.00038356,30]
[359309736,1745905227338,485.71,0.00038356,30]
[359309737,1745905228890,470.0,0.00038356,30]
[359309738,1745905229365,470.0,0.00038356,30]
[359309739,1745905229432,807.1,0.00038356,30]
[359309740,1745905231223,470.0,0.00038356,30]
[359309741,1745905233759,470.0,0.00038356,30]
[359309742,1745905234208,470.0,0.00038356,30]
[359309743,1745905234369,470.0,0.00038356,30]
[359309744,1745905234637,1074.84,0.00038356,30]
[359309745,1745905234714,874.45,0.00038356,30]
[359309746,1745905235168,470.0,0.00038356,30]
[359309747,1745905236536,470.0,0.00038356,30]
[359309748,1745905236908,470.0,0.00038356,30]
[359309749,1745905237629,546.97,0.00038356,30]
[359309750,1745905238328,515.78,0.00038356,30]
[359309751,1745905238751,653.69,0.00038356,30]
[359309752,1745905240917,634.7,0.00038356,30]
[359309753,1745905241303,470.0,0.00038356,30]
[359309754,1745905243353,697.32,0.00038356,30]
[359309755,1745905243436,470.0,0.00038356,30]
[359309756,1745905245042,470.0,0.00038356,30]
[359309757,1745905245196,470.0,0.00038356,30]
[359309758,1745905245519,470.0,0.00038356,30]
[359309759,1745905249033,470.0,0.00038356,30]
[359309760,1745905249203,542.8,0.00038356,30]
[359309761,1745905250423,470.0,0.00038356,30]
[359309762,1745905250482,649.15,0.00038356,30]
[359309763,1745905250886,1342.78,0.00038356,30]
[359309764,1745905251122,636.58,0.00038356,30]
[359309765,1745905251191,849.62,0.00038356,30]
[359309766,1745905251580,470.0,0.00038356,30]
[359309767,1745905251709,575.26,0.00038356,30]
[359309768,1745905253595,2031.55,0.00038356,30]
[359309769,1745905254809,470.0,0.00038356,30]
[359309770,1745905258048,590.80935294,0.00038356,30]
[359309771,1745905258793,929.07,0.00038356,30]
[359309772,1745905258918,658.92,0.00038356,30]
[359309773,1745905259247,470.0,0.00038356,30]
[359309774,1745905259727,470.0,0.00038356,30]
[359309775,1745905260051,400.0,0.00038356,30]
[359309776,1745905260541,470.0,0.00038356,30]
[359309777,1745905261500,470.0,0.00038356,30]
[359309778,1745905261803,470.0,0.00038356,30]
[359309779,1745905263729,541.68826167,0.00038356,30]
[359309780,1745905263860,492.92,0.00038356,30]
[359309781,1745905265124,470.0,0.00038356,30]
[359309782,1745905265558,470.0,0.00038356,30]
[359309783,1745905267570,470.0,0.00038356,30]
[359309784,1745905267669,714.82,0.00038356,30]
[359309785,1745905268891,475.0,0.00038356,30]
[359309786,1745905269564,470.0,0.00038356,30]
[359309787,1745905269631,470.0,0.00038356,30]
[359309788,1745905269690,575.0,0.00038356,30]
[359309789,1745905271048,752.97,0.00038356,30]
[359309790,1745905272056,470.0,0.00038356,30]
[359309791,1745905274943,470.0,0.00038356,30]
[359309792,1745905275064,891.57,0.00038356,30]
[359309793,1745905276505,470.0,0.00038356,30]
[359309794,1745905276574,470.0,0.00038356,30]
[359309795,1745905277941,1160.55,0.00038356,30]
[359309796,1745905278717,470.0,0.00038356,30]
[359309797,1745905278982,470.0,0.00038356,30]
[359309798,1745905280897,512.15,0.00038356,30]
[359309799,1745905283031,890.06,0.00038356,30]
[359309800,1745905283679,470.0,0.00038356,30]
[359309801,1745905283854,1085.58,0.00038356,30]
[359309802,1745905283939,874.96,0.00038356,30]
[359309803,1745905284249,470.0,0.00038356,30]
[359309804,1745905286276,150.0,0.00038356,30]
[359309805,1745905286611,470.0,0.00038356,30]
[359309806,1745905286685,470.0,0.00038356,30]
[359309807,1745905287519,150.0,0.00038356,30]
[359309808,1745905288322,682.68,0.00038356,30]
[359309809,1745905289873,470.0,0.00038356,30]
[359309810,1745905290126,509.98,0.00038356,30]
[359309811,1745905291345,470.0,0.00038356,30]
[359309812,1745905291447,470.0,0.00038356,30]
[359309813,1745905292128,470.0,0.00038356,30]
[359309814,1745905292720,500.0,0.00038356,30]
[359309815,1745905293716,484.42,0.00038356,30]
[359309816,1745905293792,800.26,0.00038356,30]
[359309817,1745905294829,470.0,0.00038356,30]
[359309818,1745905296898,470.0,0.00038356,30]
[359309819,1745905297707,560.6,0.00038356,30]
[359309820,1745905297883,470.0,0.00038356,30]
[359309821,1745905299309,470.0,0.00038356,30]
[359309822,1745905300557,470.0,0.00038356,30]
[359309823,1745905300616,470.0,0.00038356,30]
[359309824,1745905301019,470.0,0.00038356,30]
[359309825,1745905302426,470.0,0.00038356,30]
[359309826,1745905303027,470.0,0.00038356,30]
[359309827,1745905304163,801.35,0.00038356,30]
[359309828,1745905304892,470.0,0.00038356,30]
[359309829,1745905306057,482.61,0.00038356,30]
[359309830,1745905307227,1021.34,0.00038356,30]
[359309831,1745905310139,470.0,0.00038356,30]
[359309832,1745905310443,470.0,0.00038356,30]
[359309833,1745905310642,470.0,0.00038356,30]
[359309834,1745905311327,470.0,0.00038356,30]
[359309835,1745905312872,2359.34,0.00038356,30]
[359309836,1745905314414,470.0,0.00038356,30]
[359309837,1745905315796,470.0,0.00038356,30]
[359309838,1745905316136,470.0,0.00038356,30]
[359309839,1745905316320,615.87,0.00038356,30]
[359309840,1745905316565,470.0,0.00038356,30]
[359309841,1745905320534,470.0,0.00038356,30]
[359309842,1745905323843,1197.33,0.00038356,30]
[359309843,1745905323980,470.0,0.00038356,30]
[359309844,1745905324840,470.0,0.00038356,30]
[359309845,1745905324988,470.0,0.00038356,30]
[359309846,1745905325358,470.0,0.00038356,30]
[359309847,1745905325503,150.0,0.00038356,30]
[359309848,1745905325559,470.0,0.00038356,30]
[359309849,1745905325626,436.81903353,0.00038356,30]
[359309850,1745905326870,191.05196734,0.00038356,30]
[359309851,1745905327416,470.0,0.00038356,30]
[359309852,1745905328451,470.0,0.00038356,30]
[359309853,1745905328938,758.43,0.00038356,30]
[359309854,1745905330580,470.0,0.00038356,30]
[359309855,1745905330677,512.08,0.00038356,30]
[359309856,1745905332337,843.32,0.00038356,30]
[359309857,1745905333058,470.0,0.00038356,30]
[359309858,1745905333124,651.84,0.00038356,30]
[359309859,1745905333228,470.0,0.00038356,30]
[359309860,1745905335580,470.0,0.00038356,30]
[359309861,1745905335972,470.0,0.00038356,30]
[359309862,1745905336682,470.0,0.00038356,30]
[359309863,1745905336967,470.0,0.00038356,30]
[359309864,1745905337619,470.0,0.00038356,30]
[359309865,1745905338234,470.0,0.00038356,30]
[359309866,1745905339122,470.0,0.00038356,30]
[359309867,1745905339522,470.0,0.00038356,30]
[359309868,1745905339622,470.0,0.00038356,30]
[359309869,1745905339806,470.0,0.00038356,30]
[359309870,1745905340655,484.21,0.00038356,30]
[359309871,1745905344522,470.0,0.00038356,30]
[359309872,1745905345823,500.1,0.00038356,30]
[359309873,1745905345928,470.0,0.00038356,30]
[359309874,1745905345987,475.29,0.00038356,30]
[359309875,1745905346598,498.33,0.00038356,30]
[359309876,1745905348950,474.34,0.00038356,30]
[359309877,1745905349006,296.9,0.00038356,30]
[359309878,1745905349361,470.0,0.00038356,30]
[359309879,1745905351791,470.0,0.00038356,30]
[359309880,1745905352894,470.0,0.00038356,30]
[359309881,1745905353406,484.94,0.00038356,30]
[359309882,1745905353877,470.0,0.00038356,30]
[359309883,1745905353942,535.55,0.00038356,30]
[359309884,1745905354830,470.0,0.00038356,30]
[359309885,1745905355590,558.01,0.00038356,30]
[359309886,1745905355921,525.55,0.00038356,30]
[359309887,1745905356849,470.0,0.00038356,30]
[359309888,1745905359224,470.0,0.00038356,30]
[359309889,1745905360678,530.14,0.00038356,30]
[359309890,1745905362144,601.18,0.00038356,30]
[359309891,1745905362420,470.0,0.00038356,30]
[359309892,1745905363652,470.0,0.00038356,30]
[359309893,1745905363819,576.01,0.00038356,30]
[359309894,1745905364171,470.0,0.00038356,30]
[359309895,1745905365244,578.33,0.00038356,30]
[359309896,1745905366143,538.41,0.00038356,30]
[359309897,1745905367351,470.0,0.00038356,30]
[359309898,1745905369315,470.0,0.00038356,30]
[359309899,1745905370645,470.0,0.00038356,30]
[359309900,1745905371044,302.09398028,0.00038356,30]
[359309901,1745905371307,470.0,0.00038356,30]
[359309902,1745905371969,7839.97,0.00038356,30]
[359309903,1745905372902,470.0,0.00038356,30]
[359309904,1745905373039,999.0,0.00038356,30]
[359309905,1745905373548,470.0,0.00038356,30]
[359309906,1745905373911,17397.59563402,0.00038356,30]
[359309907,1745905620865,1053.0,0.00030137,120]
[359309908,1745905691655,454.06,0.00036986,60]
[359309926,1745905831697,-200.0,0.00021648,2]
[359309927,1745905831707,-200.0,0.00021794,2]
[359309928,1745905831717,-17.74206616,0.0002194,2]
[359309929,1745905831729,-195.25793384,0.0002194,2]
[359309930,1745905831738,-200.0,0.00023544,2]
[359309931,1745905831748,-200.0,0.00023705,2]
[359309932,1745905831756,-70.93709616,0.00023812,2]
[359309933,1745905831767,-129.06290384,0.00023812,2]
[359309934,1745905831777,-379.25813052,0.00024595,2]
[359309935,1745905831786,-207.4,0.00025833,2]
[359309936,1745905831795,-215.0738,0.00027202,2]
[359309937,1745905831803,-445.16,0.00027397,2]
[359309938,1745905831812,-1707.45480125,0.00028571,2]
[359309939,1745905831823,-448.58007964,0.00028571,2]
[359309940,1745905831853,-937.83,0.00028571,2]
[359309941,1745905831874,-714.56409385,0.00028571,2]
[359309942,1745905831884,-419.84269477,0.00028571,2]
[359309953,1745905837686,-4597.05833049,0.00028571,2]
[359309954,1745905837696,-223.0315306,0.00028571,2]
[359309955,1745905837707,-235.87092887,0.0002906,2]
[359309956,1745905837905,-22.25505415,0.0002906,2]
[359309957,1745905837915,-682.5605456,0.000299,8]
[359309958,1745905837925,-231.28369723,0.0002994,2]
[359309959,1745905837934,-4.40953286,0.00029975,2]
[359309968,1745905839781,-167.00046714,0.00029975,2]
[359309969,1745905839791,-682.56054547,0.00030452,9]
[359309970,1745905839800,-726.59789524,0.00030706,2]
[359309971,1745905839832,-101.80210476,0.00030706,2]
[359309972,1745905839841,-682.56054547,0.00031003,9]
[359309973,1745905840128,-165.27,0.00031117,2]
[359309974,1745905840140,-239.84119403,0.00031309,2]
[359309975,1745905840150,-59.15615418,0.00031544,2]
[359309976,1745905840392,-725.58384582,0.00031544,2]
[359309977,1745905840401,-682.56054547,0.00031555,10]
[359309978,1745905840411,-807.43,0.00032091,2]
[359309979,1745905840420,-682.56054547,0.00032107,10]
[359309980,1745905840430,-152.44,0.00032456,2]
[359309981,1745905840439,-200.0,0.00032553,2]
[359309982,1745905840448,-175.15,0.00032592,2]
[359309983,1745905840457,-682.56054547,0.00032659,10]
[359309984,1745905840468,-248.71531821,0.00032678,2]
[359309985,1745905840478,-183.28,0.00032877,30]
[359309986,1745905840487,-828.4,0.0003297,2]
[359309987,1745905840496,-250.0,0.00033028,2]
[359309988,1745905840506,-150.67,0.00033125,2]
[359309989,1745905840515,-445.16,0.00033165,2]
[359309990,1745905840524,-682.56054547,0.0003321,11]
[359309991,1745905840533,-682.56054547,0.00033762,11]
[359309992,1745905840543,-152.44,0.00033829,2]
[359309993,1745905840552,-257.91778498,0.00034047,2]
[359309994,1745905840561,-682.56054547,0.00034314,11]
[359309995,1745905840571,-150.67,0.00034495,2]
[359309996,1745905840581,-682.56054547,0.00034866,12]
[359309997,1745905840591,-920.0,0.0003512,2]
[359309998,1745905840601,-1337.0,0.0003512,2]
[359309999,1745905840610,-55.6839827,0.0003512,2]
[359310012,1745905843368,-740.3160173,0.0003512,2]
[359310013,1745905843378,-1447.0,0.0003512,2]
[359310014,1745905843387,-271.694,0.0003512,2]
[359310015,1745905843397,-912.0,0.0003512,2]
[359310016,1745905843406,-877.0,0.0003512,2]
[359310017,1745905843416,-451.9899827,0.0003512,2]
[359310021,1745905845656,-1177.3010173,0.0003512,2]
[359310022,1745905845666,-150.37,0.0003512,2]
[359310023,1745905845675,-152.44,0.00035202,2]
[359310024,1745905845685,-397.8889827,0.00035234,2]
[359310025,1745905845884,-430.5110173,0.00035234,2]
[359310026,1745905845894,-217.44587564,0.000354,2]
[359310027,1745905845903,-267.46074303,0.00035416,2]
[359310028,1745905845913,-682.56054547,0.00035417,12]
[359310029,1745905845924,-365.76260807,0.00035507,14]
[359310030,1745905845935,-1132.8202,0.00035516,2]
[359310031,1745905845945,-3942.82431683,0.00035606,2]
[359310032,1745905845955,-174.13079569,0.00035619,2]
[359310033,1745905845964,-1000.0,0.00035799,2]
[359310034,1745905845973,-2808.5072,0.0003583,2]
[359310035,1745905845982,-17326.0443,0.000359,2]
[359310036,1745905845991,-2666.6276,0.000359,2]
[359310037,1745905846000,-159.97284724,0.000359,15]
[359310038,1745905846009,-4800.80173853,0.000359,2]
[359310039,1745905846018,-548.74725806,0.000359,2]
[359310040,1745905846028,-34312.90613485,0.0003593,7]
[359310041,1745905846039,-671.39199992,0.0003593,7]
[359310042,1745905846051,-22787.35898262,0.0003593,7]
[359310051,1745905923192,200.0,0.0003584,117]
[359310052,1745905923269,200.0,0.00035922,117]
[359310053,1745906042112,200.0,0.00028417,117]
[359310054,1745906042181,200.0,0.00026468,117]
[359310055,1745906042492,200.0,0.00027491,117]
[359310056,1745906097267,545.42,0.00036017,120]
[359310058,1745906161600,200.0,0.00028417,117]
[359310059,1745906161685,200.0,0.00026468,117]
[359310060,1745906161757,200.0,0.00027491,117]
[359310062,1745906272593,250.0,0.00017,2]
[359310063,1745906273667,300.0,0.00019,2]
[359310064,1745906278869,603.2,0.00036986,60]
[359310065,1745906362538,200.0,0.0003013,120]
[359310066,1745906365568,500.0,0.00036986,60]
[359310067,1745906378222,500.0,0.00036986,60]
[359310068,1745906385805,500.0,0.00036986,60]
[359310069,1745906395190,500.0,0.00036986,60]
[359310070,1745906409182,339.55775521,0.00036986,60]
[359310071,1745906453064,187.0,0.00036986,60]
[359310085,1745906942029,884.845,0.0002,2]
[359310086,1745906950011,150.0,0.00026694,30]
[359310087,1745906960630,251.19196361,0.00026694,30]
[359310089,1745906998512,150.0,0.0002,2]
[359310090,1745907009282,1850.0,0.0002,2]
[359310384,1745907038190,-350.0,0.00021,2]
[359310385,1745907038199,-200.0,0.00021119,2]
[359310386,1745907038209,-200.0,0.00021238,2]
[359310387,1745907038219,-200.0,0.000231,2]
[359310388,1745907038229,-132.16294131,0.000231,2]
[359310423,1745907039988,-67.83705869,0.000231,2]
[359310425,1745907039997,-200.0,0.00023192,2]
[359310427,1745907040007,-372.58465288,0.00027397,2]
[359310443,1745907040161,-53.00534712,0.00027397,2]
[359310445,1745907040172,-207.4,0.00028337,2]
[359310448,1745907040184,-215.0738,0.00029706,2]
[359310450,1745907040195,-223.0315306,0.00031075,2]
[359310452,1745907040206,-171.41,0.00031201,2]
[359310454,1745907040217,-38.87932228,0.00031363,2]
[359310484,1745907040495,-678.31067772,0.00031363,2]
[359310485,1745907040503,-231.28369723,0.00032444,2]
[359310487,1745907040512,-1000.0,0.00033025,2]
[359310489,1745907040521,-425.59,0.00033165,2]
[359310491,1745907040529,-164.81562505,0.0003317,3]
[359310661,1745907043802,-271.92848716,0.0003317,3]
[359310662,1745907043866,-283.25588779,0.0003317,3]
[359310663,1745907043877,-278.83707429,0.00033171,2]
[359310664,1745907043888,-1012.97035628,0.00033171,2]
[359310665,1745907044210,-2255.05256943,0.00033171,2]
[359310666,1745907044220,-152.44,0.00033184,2]
[359310667,1745907044235,-1135.0,0.00033559,2]
[359310668,1745907044251,-717.19,0.00033627,2]
[359310669,1745907044264,-239.84119403,0.00033813,2]
[359310671,1745907044276,-3283.01605603,0.00033845,2]
[359310684,1745907045965,-3324.26394397,0.00033845,2]
[359310685,1745907045977,-432.28834559,0.000339,11]
[359310686,1745907045989,-175.15,0.00034262,2]
[359310687,1745907046001,-432.28834546,0.00034314,11]
[359310688,1745907046013,-500.0,0.00034673,2]
[359310689,1745907046024,-500.0,0.00034673,5]
[359310690,1745907046036,-500.0,0.00034673,5]
[359310691,1745907046047,-1000.0,0.00034699,2]
[359310692,1745907046059,-294.82347099,0.00034699,2]
[359310693,1745907046072,-49821.36453926,0.000347,2]
[359310701,1745907121907,200.0,0.00036378,117]
[359310702,1745907121990,200.0,0.00033144,117]
[359310703,1745907122065,200.0,0.00033363,117]
[359310704,1745907122370,151.30299742,0.000337,60]
[359310705,1745907130331,150.0,0.00026694,30]
[359310706,1745907132321,151.30299741,0.000346,60]
[359310707,1745907142547,227.07294671,0.00026694,30]
[359310708,1745907242360,200.0,0.00031171,117]
[359310709,1745907267079,4052.5554275,0.0001,2]
[359310710,1745907309942,150.0,0.00026694,30]
[359310711,1745907320566,204.4039264,0.00026694,30]
[359310712,1745907489658,150.0,0.00026694,30]
[359310713,1745907500256,183.09773121,0.00026694,30]
[359310714,1745907548948,152.80721532,0.00036986,60]
[359310715,1745907644350,-172.5032771,0.00028337,2]
[359310716,1745907648488,-34.8967229,0.00028337,2]
[359310717,1745907669472,150.0,0.00026694,30]
[359310718,1745907680102,163.07243027,0.00026694,30]
[359310719,1745907728796,-175.7295771,0.00028337,2]
[359310720,1745907731438,-31.6704229,0.00028337,2]
[359310721,1745907742801,652.29,0.00036986,60]
[359310722,1745907786920,405.0,0.00036986,60]
[359310723,1745907839235,-305.30119098,0.00027397,2]
[359310725,1745907849164,294.25101828,0.00026694,30]
[359310726,1745907860385,-152.0,0.00026448,2]
[359310727,1745907907574,17962.5995725,0.0002,2]
[359310728,1745908028498,150.0,0.00026694,30]
[359310729,1745908039090,239.23976651,0.00026694,30]
[359310730,1745908065547,-207.42945348,0.0001961,2]
[359310731,1745908090057,-152.0,0.00019512,2]
[359310737,1745908137669,-326.289,0.0001961,2]
[359310740,1745908203442,230.0,0.00035945,120]